Department family,Entity,Date,Expense type,Expense area,Supplier,Transaction No,Amount,Description,Post Code
Departmen of Health,NHS Business Services Authority,17/04/2020,Rates Charges,Corporate Services,NEWCASTLE CITY COUNCIL,0050037991,"33,290.58",RATES APR20 BRIDGE,NE99 2PT
Departmen of Health,NHS Business Services Authority,03/04/2020,Professional Fees,Prescription Pricing Division,AGILISYS LTD,0080109191,"80,773.98",Managed Infrastructure on-going costs in,W6 9DL
Departmen of Health,NHS Business Services Authority,03/04/2020,Professional Fees,Prescription Pricing Division,AGILISYS LTD,0080109193,"26,065.27",Managed Infrastructure on-going costs in,W6 9DL
Departmen of Health,NHS Business Services Authority,03/04/2020,Professional Fees,Prescription Pricing Division,AGILISYS LTD,0080109194,"77,787.91",Managed Infrastructure on-going costs in,W6 9DL
Departmen of Health,NHS Business Services Authority,07/04/2020,Professional Publications,Prescription Pricing Division,ALLIED PUB SVCS (MANCHESTER) LTD,0080109274,"34,588.45",Printing of monthly Drug Tariff editions,SK3 0ZP
Departmen of Health,NHS Business Services Authority,07/04/2020,Temporary Staff,Prescription Pricing Division,MASTEK UK LTD,0080109580,"83,075.00",SoW37 Common Components,RG1 8BW
Departmen of Health,NHS Business Services Authority,24/04/2020,Postage Charges,Prescription Pricing Division,ROYAL MAIL,0080109626,"33,254.26",A/C 0912819049 - TC,S49 1HQ
Departmen of Health,NHS Business Services Authority,07/04/2020,Professional Publications,Prescription Pricing Division,ALLIED PUB SVCS (MANCHESTER) LTD,0080109876,"33,486.29",Printing of monthly Drug Tariff editions,SK3 0ZP
Departmen of Health,NHS Business Services Authority,07/04/2020,Temporary Staff,Prescription Pricing Division,MASTEK UK LTD,0080110092,"62,150.00",SoW37 Common Components,RG1 8BW
Departmen of Health,NHS Business Services Authority,07/04/2020,Professional Publications,Prescription Pricing Division,ALLIED PUB SVCS (MANCHESTER) LTD,0080110114,"34,588.45",Printing of monthly Drug Tariff editions,SK3 0ZP
Departmen of Health,NHS Business Services Authority,03/04/2020,PC Purchases,Business Solutions,COMPUTACENTER (UK) LTD,0080110141,"286,446.00",Part code: 4097755 RCRC1147406-,AL10 9TW
Departmen of Health,NHS Business Services Authority,03/04/2020,Query,Business Solutions,AGILISYS LTD,0080110147,"64,676.98",Cloud Brokerage Services for SVN,W6 9DL
Departmen of Health,NHS Business Services Authority,03/04/2020,Query,Corporate Services,AGILISYS LTD,0080110147,928.21,Cloud Brokerage Services for FIC,W6 9DL
Departmen of Health,NHS Business Services Authority,03/04/2020,Query,Pensions Division,AGILISYS LTD,0080110147,159.93,Cloud Brokerage Services for PPCPS,W6 9DL
Departmen of Health,NHS Business Services Authority,03/04/2020,Query,Prescription Pricing Division,AGILISYS LTD,0080110147,"3,251.26",Cloud Brokerage Services for NHSJOBS,W6 9DL
Departmen of Health,NHS Business Services Authority,24/04/2020,Postage Charges,Prescription Pricing Division,ROYAL MAIL,0080110152,"25,920.11",A/C 0912819049 - eibss,S49 1HQ
Departmen of Health,NHS Business Services Authority,09/04/2020,Statutory Payments,Statutory Payments,CABINET OFFICE CIVIL SERVICE PENSIONS,0080110162,"51,914.54",CONT MARCH 2020,RG24 9NW
Departmen of Health,NHS Business Services Authority,24/04/2020,Postage Charges,Prescription Pricing Division,ROYAL MAIL,0080110210,"26,213.18",AC 0912819049 -lis,S49 1HQ
Departmen of Health,NHS Business Services Authority,03/04/2020,Professional Fees,Project Pacific,DEPARTMENT FOR WORKS AND PENSIONS,0080110267,"105,408.00",STAFF RECHARGE COSTS,FY5 3TA
Departmen of Health,NHS Business Services Authority,09/04/2020,Rates Charges,Corporate Services,WYRE BOROUGH COUNCIL,0080110293,"378,880.00",APR20 / MAR2021,FY6 7PU
Departmen of Health,NHS Business Services Authority,21/04/2020,PC Purchases,Business Solutions,COMPUTACENTER (UK) LTD,0080110296,"76,087.39",Computacenter part code: 4097753 Manufac,AL10 9TW
Departmen of Health,NHS Business Services Authority,03/04/2020,Software Purchases,Corporate Services,INTEGRATED HEALTH PROJECTS,0080110410,"82,355.45",TO-36 - CEMAR Software Renewal,HP2 7TR
Departmen of Health,NHS Business Services Authority,03/04/2020,Query,Supply Chain Management Division,IBM UK LTD,0080110415,"22,476.24",ESR expenses transactions,PO6 3AF
Departmen of Health,NHS Business Services Authority,03/04/2020,Query,Supply Chain Management Division,IBM UK LTD,0080110417,"22,444.76",ESR expenses transactions,PO6 3AF
Departmen of Health,NHS Business Services Authority,03/04/2020,Temporary Staff,Prescription Pricing Division,ALEXANDER MANN SOLUTIONS,0080110437,"41,975.98",PSR VARIOUS B15002 W/E 22.03.20,
Departmen of Health,NHS Business Services Authority,03/04/2020,Furniture Purchase,Dental Services Division,FLEXIFORM,0080110490,"44,632.80",Orangebox Saturday Delivery,BD3 7AE
Departmen of Health,NHS Business Services Authority,09/04/2020,Rates Charges,Corporate Services,BOLTON COUNCIL,0080110503,"156,997.13",A/C 5039118X 01.04.20-01.04.21,BL1 1RX
Departmen of Health,NHS Business Services Authority,07/04/2020,Temporary Staff,Prescription Pricing Division,MASTEK UK LTD,0080110536,"22,000.00",SOW36 Card Payment Service Integration,RG1 8BW
Departmen of Health,NHS Business Services Authority,17/04/2020,Professional Fees,Prescription Pricing Division,AGILISYS LTD,0080110580,"97,282.35",Managed Infrastructure on-going costs in,W6 9DL
Departmen of Health,NHS Business Services Authority,07/04/2020,Professional Fees,Prescription Pricing Division,DIFRENT LTD,0080110581,"124,275.00",NHS Jobs 3 Beta Phase 5 Statement of,N4 4PH
Departmen of Health,NHS Business Services Authority,17/04/2020,Professional Fees,Prescription Pricing Division,DIFRENT LTD,0080110582,"370,500.00",NHS Jobs 3 - Beta Phase 4 Team 1,N4 4PH
Departmen of Health,NHS Business Services Authority,07/04/2020,PC Purchases,Prescription Pricing Division,COMPUTACENTER (UK) LTD,0080110587,"25,972.92",Product:  Dell P2219H LED monitor Full,AL10 9TW
Departmen of Health,NHS Business Services Authority,07/04/2020,PC Purchases,Prescription Pricing Division,COMPUTACENTER (UK) LTD,0080110590,"53,677.36",Product:  NBSA:Dell Opt 7070 MFF UK,AL10 9TW
Departmen of Health,NHS Business Services Authority,07/04/2020,Query,Corporate Services,METHODS BUSINESS & DIGITAL TECH LTD,0080110608,"162,921.35",Services provided from Methods,EC1A 4EN
Departmen of Health,NHS Business Services Authority,07/04/2020,Query,Corporate Services,METHODS BUSINESS & DIGITAL TECH LTD,0080110609,"162,921.35",Services provided from Methods,EC1A 4EN
Departmen of Health,NHS Business Services Authority,07/04/2020,Professional Fees,Corporate Services,METHODS BUSINESS & DIGITAL TECH LTD,0080110613,"23,799.00","CCN 93,96,97 PO25167 COMPLETE",EC1A 4EN
Departmen of Health,NHS Business Services Authority,09/04/2020,Professional Fees,Corporate Services,GOVERNMENT ACTUARY'S DEPARTMENT,0080110626,"24,216.56",ACTUARIAL SERVICES P/END 29/02/2020,EC4A 1AB
Departmen of Health,NHS Business Services Authority,09/04/2020,Temporary Staff,Corporate Services,AGILISYS LTD,0080110628,"175,434.46",Statement of Work - M365 Early works pro,W6 9DL
Departmen of Health,NHS Business Services Authority,09/04/2020,Temporary Staff,Pensions Division,CLAYBROOK COMPUTING LTD,0080110654,"42,467.00",IPC Changes provided by Claybrook,RH10 1UH
Departmen of Health,NHS Business Services Authority,17/04/2020,Query,Pensions Division,CLAYBROOK COMPUTING LTD,0080110655,"105,672.00",In line with administrators of other,RH10 1UH
Departmen of Health,NHS Business Services Authority,15/04/2020,Temporary Staff,Pensions Division,CLAYBROOK COMPUTING LTD,0080110656,"25,977.56",miscellaneous,RH10 1UH
Departmen of Health,NHS Business Services Authority,17/04/2020,Query,Pensions Division,CLAYBROOK COMPUTING LTD,0080110657,"174,117.08",Monthly standard product support and,RH10 1UH
Departmen of Health,NHS Business Services Authority,21/04/2020,Professional Fees,Corporate Services,FINANCIAL REPORTING COUNCIL,0080110667,"87,190.68",FRC PENSION LEVY 01.04.19 / 31.03.20,EC2Y 5AS
Departmen of Health,NHS Business Services Authority,15/04/2020,Temporary Staff,Pensions Division,PAYMASTER (1836) LTD,0080110670,"32,527.00",AUTO EVENTS PART 2 - PO 18130 COMPLETE,RH10 1UH
Departmen of Health,NHS Business Services Authority,15/04/2020,Software Licences,Business Solutions,TRUSTMARQUE SOLUTIONS,0080110673,"282,725.71",Visio Online P2  -  1 licence,YO32 9WN
Departmen of Health,NHS Business Services Authority,15/04/2020,Software Licences,Corporate Services,TRUSTMARQUE SOLUTIONS,0080110673,"12,567.89",Year 3,YO32 9WN
Departmen of Health,NHS Business Services Authority,15/04/2020,Software Licences,Business Solutions,TRUSTMARQUE SOLUTIONS,0080110674,"42,250.61",difference p/o 26383,YO32 9WN
Departmen of Health,NHS Business Services Authority,15/04/2020,Software Licences,Corporate Services,TRUSTMARQUE SOLUTIONS,0080110674,"6,277.39",Year 3,YO32 9WN
Departmen of Health,NHS Business Services Authority,15/04/2020,Temporary Staff,Prescription Pricing Division,ALEXANDER MANN SOLUTIONS,0080110685,"31,020.71",PSR VARIOUS W/E 29.03.20 B15002,
Departmen of Health,NHS Business Services Authority,17/04/2020,Professional Fees,Dental Services Division,CAPITA IB SOLUTIONS (UK) LTD,0080110718,"90,000.00",Pre-purchase of days to be called off,DL1 9HN
Departmen of Health,NHS Business Services Authority,17/04/2020,Professional Fees,Pensions Levy,ACUITY BUSINESS SOLUTIONS LTD,0080110741,"52,680.00","Consultancy for Pensions Flexibilities,",EX2 8LB
Departmen of Health,NHS Business Services Authority,15/04/2020,Query,Prescription Pricing Division,TISSKI LIMITED,0080110743,"57,222.62",SOW Reference:  19_06_02 SOW5,CV8 2LG
Departmen of Health,NHS Business Services Authority,17/04/2020,Bank Charges,Prescription Pricing Division,ALLPAY LIMITED,0080110744,"31,181.09",DD TRANSACTIONS PPC1,HR1 3SE
Departmen of Health,NHS Business Services Authority,15/04/2020,Query,Supply Chain Management Division,IBM UK LTD,0080110760,"267,237.34",ESR Managed Service Charge - support,PO6 3AF
Departmen of Health,NHS Business Services Authority,15/04/2020,Query,Supply Chain Management Division,IBM UK LTD,0080110761,"1,826,917.70",ESR Managed Service Charge - baseline -,PO6 3AF
Departmen of Health,NHS Business Services Authority,15/04/2020,Query,Supply Chain Management Division,IBM UK LTD,0080110762,"71,402.38",ESR Managed Service Charge - baseline -,PO6 3AF
Departmen of Health,NHS Business Services Authority,17/04/2020,Minor Works,Corporate Services,HEALTH RESEARCH AUTHORITY,0080110767,"31,313.70",OTHER OPERAT.NHS INCOME 01/04-30/09/19,WF3 1WE
Departmen of Health,NHS Business Services Authority,17/04/2020,Professional Fees,Strategic Ambitions,VALTECH LTD,0080110793,"24,875.00",To enable the progression of the,N1 8AF
Departmen of Health,NHS Business Services Authority,17/04/2020,Temporary Staff,Pensions Division,VALTECH LTD,0080110794,"59,150.00",Delivery of Beta for Member Services,N1 8AF
Departmen of Health,NHS Business Services Authority,24/04/2020,Temporary Staff,Prescription Pricing Division,MASTEK UK LTD,0080110798,"22,984.38",SOW36 CCN01 Card Payment Service,RG1 8BW
Departmen of Health,NHS Business Services Authority,21/04/2020,Temporary Staff,Prescription Pricing Division,MASTEK UK LTD,0080110799,"79,800.00",SoW37 Common Components,RG1 8BW
Departmen of Health,NHS Business Services Authority,24/04/2020,Temporary Staff,Prescription Pricing Division,MASTEK UK LTD,0080110800,"30,200.00",SOW36 CCN01 Card Payment Service,RG1 8BW
Departmen of Health,NHS Business Services Authority,21/04/2020,Temporary Staff,Prescription Pricing Division,MASTEK UK LTD,0080110802,"93,925.00",SoW40 - Compass Mobile.  The Buyer has,RG1 8BW
Departmen of Health,NHS Business Services Authority,21/04/2020,Temporary Staff,Prescription Pricing Division,MASTEK UK LTD,0080110804,"56,700.00",SOW35 CCN02 - OHS Delivery 2019-20,RG1 8BW
Departmen of Health,NHS Business Services Authority,21/04/2020,Postage Charges,Project Pacific,ROYAL MAIL,0080110850,"25,707.47",AC 0526762000,S49 1HQ
Departmen of Health,NHS Business Services Authority,21/04/2020,Query,Prescription Pricing Division,INTANDEM SOLUTIONS LIMITED,0080110859,"57,390.00",Product:Track and Trace Software for,E17  3QW
Departmen of Health,NHS Business Services Authority,21/04/2020,Software Licences,Prescription Pricing Division,INVISION SOFTWARE LTD,0080110863,"43,354.19",Supplier: Invision Software Ltd (Injixo),WC1H 9LT
Departmen of Health,NHS Business Services Authority,21/04/2020,Temporary Staff,Prescription Pricing Division,TISSKI LIMITED,0080110866,"53,295.00",Raising on behalf of Joyce Wilbrink,CV8 2LG
Departmen of Health,NHS Business Services Authority,21/04/2020,Internal Audit Fees,Corporate Services,DEPARTMENT OF HEALTH,0080110867,"25,522.62",19-20 Serious Shortage Protocol,LS2 7UE
Departmen of Health,NHS Business Services Authority,21/04/2020,Internal Audit Fees,Corporate Services,DEPARTMENT OF HEALTH,0080110868,"47,583.05",19-20 Fixed Assets,LS2 7UE
Departmen of Health,NHS Business Services Authority,21/04/2020,Professional Fees,Prescription Pricing Division,ARCUS GLOBAL LTD,0080110869,"41,765.46",This SOW is being called off against,CB4 2HY
Departmen of Health,NHS Business Services Authority,28/04/2020,Service Desk,Corporate Services,CAPITA BUSINESS SERVICES LTD,0080110920,"27,659.18",Servcie Desk MIM -  Service Desk,DL1 9HN
Departmen of Health,NHS Business Services Authority,28/04/2020,Professional Fees,Corporate Services,CAPITA BUSINESS SERVICES LTD,0080110922,"271,388.63",Call Off Note - CON/8004 - Exit and,DL1 9HN
Departmen of Health,NHS Business Services Authority,28/04/2020,Query,Corporate Services,CAPITA BUSINESS SERVICES LTD,0080110923,"212,825.82",Call Off Note - CON8002,DL1 9HN
Departmen of Health,NHS Business Services Authority,28/04/2020,Professional Fees,Prescription Pricing Division,CAPITA BUSINESS SERVICES LTD,0080110924,"86,829.45",Provision of Data Centre hosting,DL1 9HN
Departmen of Health,NHS Business Services Authority,28/04/2020,Query,Corporate Services,CAPITA BUSINESS SERVICES LTD,0080110926,"168,900.46",Server Costs - All Server Charges - Data,DL1 9HN
Departmen of Health,NHS Business Services Authority,21/04/2020,Sun System Maintenance,Prescription Pricing Division,CAPGEMINI UK PLC,0080110930,"52,960.00",Capegmini second statement of works,GU21 6DB
Departmen of Health,NHS Business Services Authority,24/04/2020,Professional Publications,Prescription Pricing Division,ALLIED PUB SVCS (MANCHESTER) LTD,0080110941,"34,642.40",Printing of monthly Drug Tariff editions,SK3 0ZP
Departmen of Health,NHS Business Services Authority,28/04/2020,Professional Fees,Strategic Ambitions,VALTECH LTD,0080110958,"40,250.00",NHS Life - to include Alpha and Beta,N1 8AF
Departmen of Health,NHS Business Services Authority,28/04/2020,Query,Pensions Division,MEDIGOLD HEALTH CONSULTANCY,0080111010,"53,576.26",Provision of Medical Services by,NN4 7BF
Departmen of Health,NHS Business Services Authority,01/04/2020,Pensions Division,Pensions Division,,,"1,297,121.93",Payments to Pensioners,
Departmen of Health,NHS Business Services Authority,01/04/2020,Dental Contractors,Dental Contractors,,,"252,204,162.00",Payments to Dental Contractors,
Departmen of Health,NHS Business Services Authority,01/04/2020,Pharmacy Contractors,Prescription Pricing ,,,"613,407,993.69",Payments to Pharmacy Contractors,
Departmen of Health,NHS Business Services Authority,01/04/2020,Pharmacy Contractors,Prescription Pricing ,,,"131,039,671.31",Payments to Pharmacy Contractors,
Departmen of Health,NHS Business Services Authority,01/04/2020,Pharmacy Contractors,Prescription Pricing ,,,"88,500,453.94",Payments to Pharmacy Contractors,
Departmen of Health,NHS Business Services Authority,01/04/2020,Pharmacy Contractors,Prescription Pricing ,,,"67,435,315.04",Payments to Pharmacy Contractors,
Departmen of Health,NHS Business Services Authority,01/04/2020,Pharmacy Contractors,Prescription Pricing ,,,"65,701,423.59",Payments to Pharmacy Contractors,
Departmen of Health,NHS Business Services Authority,01/04/2020,Pharmacy Contractors,Prescription Pricing ,,,"9,879,172.60",Payments to Pharmacy Contractors,
Departmen of Health,NHS Business Services Authority,01/04/2020,Pharmacy Contractors,Prescription Pricing ,,,"1,761,365.98",Payments to Pharmacy Contractors,
Departmen of Health,NHS Business Services Authority,01/04/2020,Pharmacy Contractors,Prescription Pricing ,,,"1,518,081.41",Payments to Pharmacy Contractors,
Departmen of Health,NHS Business Services Authority,01/04/2020,Pharmacy Contractors,Prescription Pricing ,,,"1,455,655.69",Payments to Pharmacy Contractors,
Departmen of Health,NHS Business Services Authority,01/04/2020,Pharmacy Contractors,Prescription Pricing ,,,"1,429,554.07",Payments to Pharmacy Contractors,
Departmen of Health,NHS Business Services Authority,02/04/2020,Pharmacy Contractors,Prescription Pricing ,,,"518,609.65",Payments to Pharmacy Contractors,
Departmen of Health,NHS Business Services Authority,06/04/2020,Pharmacy Contractors,Prescription Pricing ,,,"89,246.63",Payments to Pharmacy Contractors,
Departmen of Health,NHS Business Services Authority,08/04/2020,Pharmacy Contractors,Prescription Pricing ,,,"207,849.71",Payments to Pharmacy Contractors,
Departmen of Health,NHS Business Services Authority,30/04/2020,Pharmacy Contractors,Prescription Pricing ,,,"7,290,172.40",Payments to Pharmacy Contractors,
